fUST/lending_fUST_20241207
["ID","MTS","AMOUNT","RATE_DAILY","PERIOD"]
[344473766,1733508663923,-1249.98,0.00030136,7]
[344473767,1733508663933,-1249.98,0.00030136,7]
[344473768,1733508663942,-1250.072161,0.00030136,7]
[344473769,1733508663951,-500.0,0.00030136,7]
[344473770,1733508663960,-500.0,0.00030136,7]
[344473771,1733508663970,-500.0,0.00030136,7]
[344473772,1733508663979,-500.0,0.00030136,7]
[344473773,1733508663988,-229.47999126,0.00030136,7]
[344473774,1733508663998,-500.0,0.00030136,7]
[344473775,1733508664007,-500.0,0.00030136,7]
[344473776,1733508664017,-500.0,0.00030136,7]
[344473777,1733508664026,-403.15809241,0.00030136,7]
[344473778,1733508664036,-500.0,0.00030136,7]
[344473779,1733508664046,-500.0,0.00030136,7]
[344473780,1733508664054,-500.0,0.00030136,7]
[344473781,1733508664064,-500.0,0.00030136,7]
[344473782,1733508664073,-500.0,0.00030136,7]
[344473783,1733508664083,-500.0,0.00030136,7]
[344473784,1733508664092,-500.0,0.00030136,7]
[344473785,1733508664101,-500.0,0.00030136,7]
[344473786,1733508664111,-437.03892787,0.00030136,7]
[344473787,1733508664120,-504.16,0.00030136,7]
[344473788,1733508664129,-504.16,0.00030136,7]
[344473789,1733508664142,-504.16,0.00030136,7]
[344473790,1733508664151,-535.15706322,0.00030136,7]
[344473791,1733508664161,-504.16,0.00030136,7]
[344473792,1733508664171,-504.16,0.00030136,7]
[344473793,1733508664180,-504.16,0.00030136,7]
[344473794,1733508664190,-504.16,0.00030136,7]
[344473795,1733508664199,-504.16,0.00030136,7]
[344473796,1733508664209,-504.16,0.00030136,7]
[344473797,1733508664219,-504.16,0.00030136,7]
[344473798,1733508664229,-504.16,0.00030136,7]
[344473799,1733508664238,-504.16,0.00030136,7]
[344473800,1733508664248,-504.16,0.00030136,7]
[344473801,1733508664258,-504.16,0.00030136,7]
[344473802,1733508664268,-504.16,0.00030136,7]
[344473803,1733508664279,-504.16,0.00030136,7]
[344473804,1733508664291,-504.16,0.00030136,7]
[344473805,1733508664302,-504.16,0.00030136,7]
[344473806,1733508664312,-504.16,0.00030136,7]
[344473807,1733508664322,-504.16,0.00030136,7]
[344473808,1733508664333,-504.16,0.00030136,7]
[344473809,1733508664343,-504.16,0.00030136,7]
[344473810,1733508664353,-504.16,0.00030136,7]
[344473811,1733508664362,-504.16011892,0.00030136,7]
[344473812,1733508664374,-500.0,0.00030136,7]
[344473813,1733508664386,-500.0,0.00030136,7]
[344473814,1733508664396,-500.0,0.00030136,7]
[344473815,1733508664405,-500.0,0.00030136,7]
[344473816,1733508664415,-500.0,0.00030136,7]
[344473817,1733508664424,-500.0,0.00030136,7]
[344473818,1733508664434,-500.0,0.00030136,7]
[344473819,1733508664443,-514.30667613,0.00030136,7]
[344473820,1733508664452,-500.0,0.00030136,7]
[344473821,1733508664462,-494.52148,0.00030136,7]
[344473822,1733508664472,-500.0,0.00030136,7]
[344473823,1733508664482,-500.0,0.00030136,7]
[344473824,1733508664491,-500.0,0.00030136,7]
[344473825,1733508664501,-635.5,0.00030136,7]
[344473826,1733508664511,-635.5,0.00030136,7]
[344473827,1733508664521,-635.5,0.00030136,7]
[344473828,1733508664530,-635.5,0.00030136,7]
[344473829,1733508664540,-635.5,0.00030136,7]
[344473830,1733508664549,-635.5,0.00030136,7]
[344473831,1733508664559,-500.0,0.00030136,7]
[344473832,1733508664568,-635.5,0.00030136,7]
[344473833,1733508664578,-500.0,0.00030136,7]
[344473834,1733508664588,-635.5,0.00030136,7]
[344473835,1733508664599,-500.0,0.00030136,7]
[344473836,1733508664608,-635.5,0.00030136,7]
[344473837,1733508664618,-500.0,0.00030136,7]
[344473838,1733508664628,-635.5,0.00030136,7]
[344473839,1733508664639,-500.0,0.00030136,7]
[344473840,1733508664649,-635.5,0.00030136,7]
[344473841,1733508664658,-500.0,0.00030136,7]
[344473842,1733508664668,-635.5,0.00030136,7]
[344473843,1733508664677,-500.0,0.00030136,7]
[344473844,1733508664686,-635.5,0.00030136,7]
[344473845,1733508664695,-500.0,0.00030136,7]
[344473846,1733508664704,-500.0,0.00030136,7]
[344473847,1733508664714,-635.5,0.00030136,7]
[344473848,1733508664723,-500.0,0.00030136,7]
[344473849,1733508664733,-500.0,0.00030136,7]
[344473850,1733508664742,-635.5,0.00030136,7]
[344473851,1733508664751,-500.0,0.00030136,7]
[344473852,1733508664760,-635.5,0.00030136,7]
[344473853,1733508664770,-505.45612419,0.00030136,7]
[344473854,1733508664779,-635.5,0.00030136,7]
[344473855,1733508664788,-635.5,0.00030136,7]
[344473856,1733508664797,-635.5,0.00030136,7]
[344473857,1733508664806,-635.5,0.00030136,7]
[344473858,1733508664815,-635.5,0.00030136,7]
[344473859,1733508664825,-635.5,0.00030136,7]
[344473860,1733508664835,-635.5,0.00030136,7]
[344473861,1733508664844,-635.6956517,0.00030136,7]
[344473862,1733508664853,-500.0,0.00030136,7]
[344473863,1733508664864,-500.0,0.00030136,7]
[344473864,1733508664874,-500.0,0.00030136,7]
[344473865,1733508664883,-500.0,0.00030136,7]
[344473866,1733508664896,-211.07847415,0.00030136,7]
[344473867,1733508664905,-500.0,0.00030136,7]
[344473868,1733508664914,-500.0,0.00030136,7]
[344473869,1733508665017,-500.0,0.00030136,7]
[344473870,1733508665027,-500.0,0.00030136,7]
[344473871,1733508665036,-500.0,0.00030136,7]
[344473872,1733508665046,-500.0,0.00030136,7]
[344473873,1733508665055,-500.0,0.00030136,7]
[344473874,1733508665064,-500.0,0.00030136,7]
[344473875,1733508665074,-500.0,0.00030136,7]
[344473876,1733508665083,-500.0,0.00030136,7]
[344473877,1733508665092,-500.0,0.00030136,7]
[344473878,1733508665102,-500.0,0.00030136,7]
[344473879,1733508665111,-500.0,0.00030136,7]
[344473880,1733508665121,-588.28355796,0.00030136,7]
[344473881,1733508665130,-609.14,0.00030136,7]
[344473882,1733508665143,-609.14,0.00030136,7]
[344473883,1733508665152,-609.14,0.00030136,7]
[344473884,1733508665162,-609.14,0.00030136,7]
[344473885,1733508665171,-609.14,0.00030136,7]
[344473886,1733508665181,-609.14,0.00030136,7]
[344473887,1733508665190,-609.14,0.00030136,7]
[344473888,1733508665199,-609.14,0.00030136,7]
[344473889,1733508665209,-609.14,0.00030136,7]
[344473890,1733508665219,-609.14,0.00030136,7]
[344473891,1733508665228,-609.14,0.00030136,7]
[344473892,1733508665238,-609.14,0.00030136,7]
[344473893,1733508665247,-609.14,0.00030136,7]
[344473894,1733508665257,-609.14,0.00030136,7]
[344473895,1733508665267,-609.14,0.00030136,7]
[344473896,1733508665276,-609.14,0.00030136,7]
[344473897,1733508665289,-609.14,0.00030136,7]
[344473898,1733508665301,-609.14,0.00030136,7]
[344473899,1733508665311,-609.14,0.00030136,7]
[344473900,1733508665320,-609.14,0.00030136,7]
[344473901,1733508665331,-609.14,0.00030136,7]
[344473902,1733508665340,-609.14,0.00030136,7]
[344473903,1733508665350,-609.14,0.00030136,7]
[344473904,1733508665359,-609.26844882,0.00030136,7]
[344473905,1733508665371,-500.0,0.00030136,7]
[344473906,1733508665380,-500.0,0.00030136,7]
[344473907,1733508665393,-500.0,0.00030136,7]
[344473908,1733508665403,-500.0,0.00030136,7]
[344473909,1733508665413,-500.0,0.00030136,7]
[344473910,1733508665422,-500.0,0.00030136,7]
[344473911,1733508665432,-500.0,0.00030136,7]
[344473912,1733508665442,-500.0,0.00030136,7]
[344473913,1733508665451,-500.0,0.00030136,7]
[344473914,1733508665461,-500.0,0.00030136,7]
[344473915,1733508665471,-500.0,0.00030136,7]
[344473916,1733508665481,-500.0,0.00030136,7]
[344473917,1733508665490,-500.0,0.00030136,7]
[344473918,1733508665500,-500.0,0.00030136,7]
[344473919,1733508665509,-500.0,0.00030136,7]
[344473920,1733508665518,-500.0,0.00030136,7]
[344473921,1733508665528,-500.0,0.00030136,7]
[344473922,1733508665537,-500.0,0.00030136,7]
[344473923,1733508665547,-500.0,0.00030136,7]
[344473924,1733508665556,-500.0,0.00030136,7]
[344473925,1733508665566,-500.0,0.00030136,7]
[344473926,1733508665576,-500.0,0.00030136,7]
[344473927,1733508665585,-605.68415671,0.00030136,7]
[344473928,1733508665595,-500.0,0.00030136,7]
[344473929,1733508665604,-500.0,0.00030136,7]
[344473930,1733508665614,-500.0,0.00030136,7]
[344473931,1733508665624,-500.0,0.00030136,7]
[344473932,1733508665636,-500.0,0.00030136,7]
[344473933,1733508665646,-500.0,0.00030136,7]
[344473934,1733508665655,-500.0,0.00030136,7]
[344473935,1733508665664,-500.0,0.00030136,7]
[344473936,1733508665674,-500.0,0.00030136,7]
[344473937,1733508665683,-402.50376896,0.00030136,7]
[344473938,1733508665693,-500.0,0.00030136,7]
[344473939,1733508665703,-500.0,0.00030136,7]
[344473940,1733508665712,-627.27,0.00030136,7]
[344473941,1733508665722,-627.27,0.00030136,7]
[344473942,1733508665731,-627.27,0.00030136,7]
[344473943,1733508665741,-627.27,0.00030136,7]
[344473944,1733508665750,-627.27,0.00030136,7]
[344473945,1733508665760,-627.27,0.00030136,7]
[344473946,1733508665770,-627.27,0.00030136,7]
[344473947,1733508665779,-627.27,0.00030136,7]
[344473948,1733508665789,-500.0,0.00030136,7]
[344473949,1733508665798,-627.27,0.00030136,7]
[344473950,1733508665807,-500.0,0.00030136,7]
[344473951,1733508665816,-500.0,0.00030136,7]
[344473952,1733508665826,-500.0,0.00030136,7]
[344473953,1733508665835,-627.27,0.00030136,7]
[344473954,1733508665844,-500.0,0.00030136,7]
[344473955,1733508665853,-328.03440205,0.00030136,7]
[344473956,1733508665863,-627.27,0.00030136,7]
[344473957,1733508665872,-500.0,0.00030136,7]
[344473958,1733508665882,-627.27,0.00030136,7]
[344473959,1733508665893,-500.0,0.00030136,7]
[344473960,1733508665903,-627.27,0.00030136,7]
[344473961,1733508665913,-500.0,0.00030136,7]
[344473962,1733508665922,-627.27,0.00030136,7]
[344473963,1733508665931,-500.0,0.00030136,7]
[344473964,1733508665941,-500.0,0.00030136,7]
[344473965,1733508665950,-627.27,0.00030136,7]
[344473966,1733508665960,-500.0,0.00030136,7]
[344473967,1733508665970,-500.0,0.00030136,7]
[344473968,1733508665980,-500.0,0.00030136,7]
[344473969,1733508665990,-627.27,0.00030136,7]
[344473970,1733508665999,-500.0,0.00030136,7]
[344473971,1733508666009,-500.0,0.00030136,7]
[344473972,1733508666018,-500.0,0.00030136,7]
[344473973,1733508666028,-394.54526623,0.00030136,7]
[344473974,1733508666038,-500.0,0.00030136,7]
[344473975,1733508666048,-627.27,0.00030136,7]
[344473976,1733508666058,-500.0,0.00030136,7]
[344473977,1733508666067,-500.0,0.00030136,7]
[344473978,1733508666077,-627.27,0.00030136,7]
[344473979,1733508666087,-500.0,0.00030136,7]
[344473980,1733508666095,-627.27,0.00030136,7]
[344473981,1733508666105,-500.0,0.00030136,7]
[344473982,1733508666115,-500.0,0.00030136,7]
[344473983,1733508666124,-481.29991346,0.00030136,7]
[344473984,1733508666134,-627.27,0.00030136,7]
[344473985,1733508666144,-500.0,0.00030136,7]
[344473986,1733508666154,-627.27,0.00030136,7]
[344473987,1733508666163,-500.0,0.00030136,7]
[344473988,1733508666173,-627.27,0.00030136,7]
[344473989,1733508666183,-500.0,0.00030136,7]
[344473990,1733508666192,-627.27,0.00030136,7]
[344473991,1733508666202,-500.0,0.00030136,7]
[344473992,1733508666211,-627.50898094,0.00030136,7]
[344473993,1733508666221,-500.0,0.00030136,7]
[344473994,1733508666231,-500.0,0.00030136,7]
[344473995,1733508666240,-500.0,0.00030136,7]
[344473996,1733508666250,-500.0,0.00030136,7]
[344473997,1733508666259,-465.38,0.00030136,7]
[344473998,1733508666269,-500.0,0.00030136,7]
[344473999,1733508666279,-500.0,0.00030136,7]
[344474000,1733508666291,-505.93914709,0.00030136,7]
[344474001,1733508666305,-500.0,0.00030136,7]
[344474002,1733508666315,-413.95615178,0.00030136,7]
[344474003,1733508666324,-500.0,0.00030136,7]
[344474004,1733508666335,-500.0,0.00030136,7]
[344474005,1733508666346,-500.0,0.00030136,7]
[344474006,1733508666356,-500.0,0.00030136,7]
[344474007,1733508666367,-572.83599722,0.00030136,7]
[344474008,1733508666377,-500.0,0.00030136,7]
[344474009,1733508666388,-500.0,0.00030136,7]
[344474010,1733508666397,-500.0,0.00030136,7]
[344474011,1733508666407,-500.0,0.00030136,7]
[344474012,1733508666417,-514.93811008,0.00030136,7]
[344474013,1733508666426,-500.0,0.00030136,7]
[344474014,1733508666435,-500.0,0.00030136,7]
[344474015,1733508666444,-500.0,0.00030136,7]
[344474016,1733508666453,-500.0,0.00030136,7]
[344474017,1733508666463,-500.0,0.00030136,7]
[344474018,1733508666472,-500.0,0.00030136,7]
[344474019,1733508666481,-500.0,0.00030136,7]
[344474020,1733508666491,-372.45693795,0.00030136,7]
[344474021,1733508666500,-355.716851,0.00030136,7]
[344474022,1733508666509,-500.0,0.00030136,7]
[344474023,1733508666518,-211.338807,0.00030137,120]
[344474024,1733508666528,-587.47741933,0.00030173,5]
[344474025,1733508666537,-500.0,0.00030173,5]
[344474026,1733508666547,-500.0,0.00030173,5]
[344474027,1733508666556,-158.27979009,0.00030173,2]
[344474028,1733508666565,-500.0,0.00030173,5]
[344474029,1733508666575,-500.0,0.00030173,5]
[344474030,1733508666584,-500.0,0.00030173,5]
[344474031,1733508666593,-275.98696753,0.00030173,2]
[344474032,1733508666602,-503.93387886,0.00030173,5]
[344474033,1733508666611,-198.60346822,0.00030173,5]
[344474034,1733508666621,-500.0,0.00030173,5]
[344474035,1733508666630,-625.5985614,0.00030173,5]
[344474036,1733508666641,-503.98909091,0.00030173,5]
[344474037,1733508666650,-500.0,0.00030173,5]
[344474038,1733508666660,-376.21,0.000302,30]
[344474039,1733508666670,-5303.42,0.000302,2]
[344474040,1733508666679,-153.42,0.000302,31]
[344474041,1733508666688,-153.42,0.000302,31]
[344474042,1733508666697,-153.42,0.000302,31]
[344474043,1733508666706,-153.42,0.000302,31]
[344474044,1733508666715,-153.42,0.000302,31]
[344474045,1733508666725,-153.42,0.000302,31]
[344474046,1733508666734,-621.44306098,0.0003023,2]
[344474047,1733508666743,-843.90687879,0.00030233,2]
[344474048,1733508666753,-151.0,0.00030282,7]
[344474049,1733508666762,-621.44306098,0.00030294,2]
[344474050,1733508666772,-621.44306098,0.00030359,2]
[344474051,1733508666781,-843.90687879,0.00030361,2]
[344474052,1733508666790,-223484.271061,0.000304,2]
[344474053,1733508666799,-153.42,0.000304,31]
[344474054,1733508666809,-153.42,0.000304,31]
[344474055,1733508666818,-153.42,0.000304,31]
[344474056,1733508666827,-153.42,0.000304,31]
[344474057,1733508666837,-153.42,0.000304,31]
[344474058,1733508666847,-153.42,0.000304,31]
[344474059,1733508666857,-150.17,0.0003041,7]
[344474060,1733508666867,-185.97246764,0.0003041,7]
[344474061,1733508666877,-150.17,0.0003041,7]
[344474062,1733508666891,-150.17,0.0003041,7]
[344474063,1733508666901,-283.159993,0.0003041,7]
[344474064,1733508666911,-155.0,0.00030411,2]
[344474065,1733508666921,-231.0,0.00030411,2]
[344474066,1733508666931,-621.44306098,0.00030423,2]
[344474067,1733508666941,-1082.11816485,0.00030443,2]
[344474068,1733508666951,-500.0,0.00030471,2]
[344474069,1733508666960,-500.0,0.00030473,5]
[344474070,1733508666969,-500.0,0.00030473,5]
[344474071,1733508666979,-500.37297933,0.00030473,5]
[344474072,1733508666988,-500.0,0.00030474,2]
[344474073,1733508666997,-500.0,0.00030478,2]
[344474074,1733508667098,-157.672137,0.00030482,2]
[344474075,1733508667108,-500.0,0.00030484,2]
[344474076,1733508667118,-500.0,0.00030486,2]
[344474077,1733508667128,-621.44306098,0.00030488,2]
[344474078,1733508667141,-843.90687879,0.00030489,2]
[344474079,1733508667150,-92903.16767771,0.000305,15]
[344474080,1733508667160,-376.9304899,0.000305,7]
[344474081,1733508667170,-151.0,0.000305,7]
[344474082,1733508667179,-151.0,0.000305,7]
[344474083,1733508667188,-151.0,0.000305,7]
[344474084,1733508667199,-241.716762,0.000305,7]
[344474085,1733508667210,-241.716762,0.000305,7]
[344474086,1733508667219,-378.102621,0.000305,7]
[344474087,1733508667230,-378.102621,0.000305,7]
[344474088,1733508667239,-379.621213,0.000305,7]
[344474089,1733508667249,-379.621213,0.000305,7]
[344474090,1733508667259,-151.0,0.000305,7]
[344474091,1733508667269,-500.0,0.00030502,2]
[344474092,1733508667279,-500.0,0.00030508,2]
[344474093,1733508667291,-151.0,0.00030509,7]
[344474094,1733508667303,-500.0,0.00030511,2]
[344474095,1733508667313,-500.0,0.00030519,2]
[344474096,1733508667323,-500.0,0.00030521,2]
[344474097,1733508667333,-1000.0,0.00030523,2]
[344474098,1733508667343,-500.0,0.00030526,2]
[344474099,1733508667352,-500.0,0.00030541,2]
[344474100,1733508667361,-997.36307268,0.00030543,2]
[344474101,1733508667372,-1000.0,0.00030546,2]
[344474102,1733508667381,-500.0,0.00030547,2]
[344474103,1733508667395,-636.882902,0.00030552,7]
[344474104,1733508667405,-636.882902,0.00030552,7]
[344474105,1733508667415,-621.44306098,0.00030552,2]
[344474106,1733508667424,-1000.0,0.00030555,2]
[344474107,1733508667434,-250.0,0.0003058,2]
[344474108,1733508667444,-224.178,0.0003058,2]
[344474109,1733508667455,-151.0,0.0003058,7]
[344474110,1733508667465,-150.0,0.0003058,2]
[344474111,1733508667475,-532.0,0.0003058,2]
[344474112,1733508667485,-2169.0,0.0003058,2]
[344474113,1733508667495,-2375.0,0.0003058,2]
[344474114,1733508667505,-1000.0,0.00030583,2]
[344474115,1733508667515,-196.869225,0.000306,30]
[344474116,1733508667525,-2500.0,0.000306,3]
[344474117,1733508667534,-153.42,0.000306,31]
[344474118,1733508667543,-153.42,0.000306,31]
[344474119,1733508667553,-153.42,0.000306,31]
[344474120,1733508667563,-153.42,0.000306,31]
[344474121,1733508667573,-153.42,0.000306,31]
[344474122,1733508667583,-153.42,0.000306,31]
[344474123,1733508667593,-621.44306098,0.00030617,2]
[344474124,1733508667603,-843.90687879,0.00030617,2]
[344474125,1733508667612,-1000.0,0.00030619,2]
[344474126,1733508667622,-500.0,0.0003063,2]
[344474127,1733508667631,-500.0,0.00030659,2]
[344474128,1733508667649,-500.0,0.0003068,2]
[344474129,1733508667659,-150.17,0.00030684,7]
[344474130,1733508667669,-199.66,0.00030684,7]
[344474131,1733508667678,-150.17,0.00030684,7]
[344474132,1733508667688,-166.594013,0.00030684,7]
[344474133,1733508667697,-166.594013,0.00030684,7]
[344474134,1733508667707,-151.0,0.00030697,7]
[344474135,1733508667716,-151.0,0.0003071,7]
[344474136,1733508667725,-151.0,0.0003071,7]
[344474137,1733508667735,-151.0,0.0003071,7]
[344474138,1733508667744,-287.210856,0.0003071,7]
[344474139,1733508667754,-742.189877,0.0003071,7]
[344474140,1733508667764,-742.189877,0.0003071,7]
[344474141,1733508667773,-742.189877,0.0003071,7]
[344474142,1733508667783,-742.189877,0.0003071,7]
[344474143,1733508667793,-742.189877,0.0003071,7]
[344474144,1733508667804,-742.189877,0.0003071,7]
[344474145,1733508667813,-742.189877,0.0003071,7]
[344474146,1733508667823,-742.189877,0.0003071,7]
[344474147,1733508667833,-742.189877,0.0003071,7]
[344474148,1733508667842,-742.189873,0.0003071,7]
[344474149,1733508667852,-77190.2533008,0.00030717,2]
[344474150,1733508667861,-1481.58048207,0.00030717,2]
[344474151,1733508667871,-302471.37326382,0.00030717,10]
[344474152,1733508668137,-1355.0,0.00030717,10]
[344474153,1733508668149,-26322.2837,0.00030717,10]
[344474154,1733508668412,-153.0,0.00029192,2]
[344474155,1733508668422,-153.0,0.00029192,2]
[344474156,1733508668432,-153.0,0.00029192,2]
[344474157,1733508668441,-153.0,0.00029192,2]
[344474158,1733508668450,-153.0,0.00029192,2]
[344474159,1733508668460,-153.0,0.00029192,2]
[344474160,1733508668469,-153.0,0.00029192,2]
[344474161,1733508668479,-153.0,0.00029192,2]
[344474162,1733508668488,-355.716851,0.00030136,7]
[344474163,1733508668498,-500.0,0.00030136,7]
[344474164,1733508668508,-500.0,0.00030136,7]
[344474165,1733508668517,-355.716851,0.00030136,7]
[344474166,1733508668527,-500.0,0.00030136,7]
[344474167,1733508668536,-500.0,0.00030136,7]
[344474168,1733508668546,-355.716851,0.00030136,7]
[344474169,1733508668556,-500.0,0.00030136,7]
[344474170,1733508668565,-355.716851,0.00030136,7]
[344474171,1733508668575,-500.0,0.00030136,7]
[344474172,1733508668584,-500.0,0.00030136,7]
[344474173,1733508668594,-630.48354685,0.00030136,7]
[344474174,1733508668603,-503.79515536,0.00030173,5]
[344474175,1733508668613,-355.716851,0.000305,7]
[344474176,1733508668622,-91176.9241764,0.00030717,10]
[344474177,1733508668632,-89928.63082578,0.00030717,2]
[344474178,1733508668644,-789562.83442283,0.00030717,10]
[344474179,1733508668794,158.0,0.00022,2]
[344474180,1733508669580,468.49455325,0.0003013,120]
[344474182,1733508926805,173.213846,0.00013973,2]
[344474185,1733509079830,-9531.50544675,0.0003,120]
[344474186,1733509079854,-151.0,0.0003,120]
[344474187,1733509079877,-150.49455325,0.0003,120]
[344474188,1733509129933,-0.50544675,0.0003,120]
[344474193,1733509322927,174.49455325,0.00030137,120]
[344474197,1733509495398,292.0,0.00025,10]
[344474201,1733509539149,-173.213846,0.00020447,2]
[344474202,1733509539171,-637.0395533,0.00026382,2]
[344474203,1733509539193,-171.683109,0.00026407,2]
[344474204,1733509539215,-250.0,0.000265,2]
[344474205,1733509539238,-204.982945,0.00026573,2]
[344474206,1733509539260,-173.213846,0.00026921,2]
[344474207,1733509539285,-726.7579324,0.00027987,2]
[344474208,1733509539306,-290.0488797,0.00028,5]
[344474209,1733509539328,-41.72473186,0.00028014,2]
[344474210,1733509550169,160.519904,0.00013973,2]
[344474214,1733509633102,-160.519904,0.00020447,2]
[344474215,1733509633125,-204.982945,0.00026677,2]
[344474216,1733509633148,-3.06495445,0.00026921,2]
[344474225,1733509719935,14154.76394726,0.0001,2]
[344474226,1733509720379,7035.73489416,0.0001999,2]
[344474227,1733509720885,390.11265021,0.000212,30]
[344474230,1733509749129,-158.0,0.00022,2]
[344474231,1733509749154,-300.0,0.00024999,2]
[344474232,1733509749176,-300.0,0.00024999,2]
[344474233,1733509749197,-1258.56868039,0.00025,7]
[344474234,1733509751154,-192748.45134142,0.00025,7]
[344474235,1733509751317,-567.71794175,0.00025,2]
[344474236,1733509751339,-4632.56722267,0.00025,2]
[344474237,1733509751362,-48899.05626823,0.00025,2]
[344474238,1733509754128,-42908.82596527,0.00025,2]
[344474239,1733509762156,-15235.1086281,0.00025,2]
[344474240,1733509762178,-443.0,0.00025,2]
[344474241,1733509762200,-37191.76154457,0.0002509,2]
[344474242,1733509762221,-500.0,0.00025999,2]
[344474243,1733509762242,-192.34450777,0.00025999,2]
[344474244,1733509762264,-500.0,0.00025999,2]
[344474245,1733509762284,-500.0,0.00025999,2]
[344474246,1733509762306,-461.00025864,0.00025999,2]
[344474247,1733509762328,-500.0,0.00025999,2]
[344474248,1733509762349,-423.64777105,0.00025999,2]
[344474249,1733509762372,-500.0,0.00025999,2]
[344474250,1733509762394,-500.0,0.00025999,2]
[344474251,1733509762415,-500.0,0.00025999,2]
[344474252,1733509762437,-500.0,0.00025999,2]
[344474253,1733509762459,-500.0,0.00025999,2]
[344474254,1733509762480,-500.0,0.00025999,2]
[344474255,1733509762501,-500.0,0.00025999,2]
[344474256,1733509762524,-500.0,0.00025999,2]
[344474257,1733509762546,-650.0,0.00025999,2]
[344474258,1733509762568,-500.0,0.00025999,2]
[344474259,1733509762589,-500.0,0.00025999,2]
[344474260,1733509762615,-500.0,0.00025999,2]
[344474261,1733509762641,-300.0,0.00025999,2]
[344474262,1733509762664,-500.0,0.00025999,2]
[344474263,1733509762691,-500.0,0.00025999,2]
[344474264,1733509762714,-500.0,0.00025999,2]
[344474265,1733509762736,-500.0,0.00025999,2]
[344474266,1733509762758,-500.0,0.00025999,2]
[344474267,1733509762780,-500.0,0.00025999,2]
[344474268,1733509762803,-500.0,0.00025999,2]
[344474269,1733509762826,-500.0,0.00025999,2]
[344474270,1733509762864,-500.0,0.00025999,2]
[344474271,1733509762891,-500.0,0.00025999,2]
[344474272,1733509762913,-500.0,0.00025999,2]
[344474273,1733509762936,-369.577051,0.00025999,2]
[344474274,1733509762959,-500.0,0.00025999,2]
[344474275,1733509762982,-500.0,0.00025999,2]
[344474276,1733509763006,-500.0,0.00025999,2]
[344474277,1733509763029,-500.0,0.00025999,2]
[344474278,1733509763058,-500.0,0.00025999,2]
[344474279,1733509763093,-500.0,0.00025999,2]
[344474280,1733509763118,-500.0,0.00025999,2]
[344474281,1733509763142,-500.0,0.00025999,2]
[344474282,1733509763166,-500.0,0.00025999,2]
[344474283,1733509763190,-500.0,0.00025999,2]
[344474284,1733509763212,-500.0,0.00025999,2]
[344474285,1733509763235,-500.0,0.00025999,2]
[344474286,1733509763257,-500.0,0.00025999,2]
[344474287,1733509763279,-500.0,0.00025999,2]
[344474288,1733509763301,-466.96219937,0.00025999,2]
[344474289,1733509763322,-500.0,0.00025999,2]
[344474290,1733509763343,-500.0,0.00025999,2]
[344474291,1733509763367,-500.0,0.00025999,2]